fUST/lending_fUST_20250908
["ID","MTS","AMOUNT","RATE_DAILY","PERIOD"]
[384155349,1757274648355,-895.78,0.00014246,2]
[384155350,1757274648365,-480.0,0.00014246,2]
[384155351,1757274648374,-743.59,0.00014246,2]
[384155352,1757274648383,-10085.97,0.00014246,2]
[384155353,1757274648392,-1299.2,0.00014246,2]
[384155354,1757274648401,-893.7,0.00014246,2]
[384155355,1757274648410,-480.0,0.00014246,2]
[384155356,1757274648418,-3236.73,0.00014246,2]
[384155357,1757274648427,-2657.79,0.00014246,2]
[384155358,1757274648436,-1058.78,0.00014246,2]
[384155359,1757274648445,-1595.82,0.00014246,2]
[384155360,1757274648542,-738.74,0.00014246,2]
[384155361,1757274648553,-2988.29,0.00014246,2]
[384155362,1757274648563,-6235.25,0.00014246,2]
[384155363,1757274648573,-580.05,0.00014246,2]
[384155364,1757274648584,-622.98,0.00014246,2]
[384155365,1757274648594,-480.0,0.00014246,2]
[384155366,1757274648604,-960.89,0.00014246,2]
[384155367,1757274648614,-711.36,0.00014246,2]
[384155368,1757274648625,-2830.11,0.00014246,2]
[384155369,1757274648636,-480.0,0.00014246,2]
[384155370,1757274648645,-480.0,0.00014246,2]
[384155371,1757274648655,-828.1,0.00014246,2]
[384155372,1757274648664,-480.0,0.00014246,2]
[384155373,1757274648674,-1643.42,0.00014246,2]
[384155374,1757274648683,-480.0,0.00014246,2]
[384155375,1757274648692,-915.96,0.00014246,2]
[384155376,1757274648702,-480.0,0.00014246,2]
[384155377,1757274648712,-480.0,0.00014246,2]
[384155378,1757274648722,-480.0,0.00014246,2]
[384155379,1757274648732,-808.37,0.00014246,2]
[384155380,1757274648742,-1525.77,0.00014246,2]
[384155381,1757274648752,-2025.76,0.00014246,2]
[384155382,1757274648763,-4996.93,0.00014246,2]
[384155383,1757274648773,-480.0,0.00014246,2]
[384155384,1757274648783,-1071.86,0.00014246,2]
[384155385,1757274648793,-480.0,0.00014246,2]
[384155386,1757274648802,-1670.47,0.00014246,2]
[384155387,1757274648812,-856.59,0.00014246,2]
[384155388,1757274648822,-519.19,0.00014246,2]
[384155389,1757274648832,-480.0,0.00014246,2]
[384155390,1757274648842,-480.0,0.00014246,2]
[384155391,1757274648852,-526.33,0.00014246,2]
[384155392,1757274648862,-480.0,0.00014246,2]
[384155393,1757274648872,-607.25,0.00014246,2]
[384155394,1757274648881,-623.5,0.00014246,2]
[384155395,1757274648893,-925.83,0.00014246,2]
[384155396,1757274648903,-2981.87,0.00014246,2]
[384155397,1757274648913,-972.41,0.00014246,2]
[384155398,1757274648925,-480.0,0.00014246,2]
[384155399,1757274648935,-480.0,0.00014246,2]
[384155400,1757274648945,-2747.03,0.00014246,2]
[384155401,1757274648956,-679.46,0.00014246,2]
[384155402,1757274648965,-480.0,0.00014246,2]
[384155403,1757274648975,-687.26,0.00014246,2]
[384155404,1757274648985,-938.74,0.00014246,2]
[384155405,1757274648995,-480.0,0.00014246,2]
[384155406,1757274649009,-480.0,0.00014246,2]
[384155407,1757274649019,-3149.45,0.00014246,2]
[384155408,1757274649029,-775.15,0.00014246,2]
[384155409,1757274649039,-2753.95,0.00014246,2]
[384155410,1757274649048,-480.0,0.00014246,2]
[384155411,1757274649058,-2248.94,0.00014246,2]
[384155412,1757274649068,-480.0,0.00014246,2]
[384155413,1757274649078,-21087.15,0.00014246,2]
[384155414,1757274649088,-1070.93,0.00014246,2]
[384155415,1757274649100,-480.0,0.00014246,2]
[384155416,1757274649110,-480.0,0.00014246,2]
[384155417,1757274649119,-600.54,0.00014246,2]
[384155418,1757274649129,-151.0,0.000143,2]
[384155419,1757274649139,-168.0,0.00014326,2]
[384155420,1757274649150,-168.0,0.00014355,2]
[384155421,1757274649160,-151.0,0.000144,2]
[384155422,1757274649171,-563.3,0.00014435,2]
[384155423,1757274649181,-210.32,0.00014435,2]
[384155424,1757274649191,-210.32,0.00014435,2]
[384155425,1757274649201,-210.32,0.00014435,2]
[384155426,1757274649211,-210.32,0.00014435,2]
[384155427,1757274649220,-210.32,0.00014435,2]
[384155428,1757274649229,-210.32,0.00014435,2]
[384155429,1757274649239,-210.31,0.00014435,2]
[384155430,1757274649248,-500.0,0.00014443,2]
[384155431,1757274649258,-2000.0,0.000145,2]
[384155432,1757274649268,-2000.0,0.000145,2]
[384155433,1757274649277,-151.0,0.000145,2]
[384155434,1757274649287,-746.06717063,0.000145,2]
[384155435,1757274649296,-350.36539022,0.0001452,2]
[384155436,1757274649305,-488.17665519,0.0001452,2]
[384155437,1757274649314,-480.0,0.0001452,2]
[384155438,1757274649324,-455.57201186,0.0001452,2]
[384155439,1757274649333,-573.65301586,0.0001452,2]
[384155440,1757274649342,-480.0,0.0001452,2]
[384155441,1757274649351,-480.0,0.0001452,2]
[384155442,1757274649361,-480.0,0.0001452,2]
[384155443,1757274649370,-480.0,0.0001452,2]
[384155444,1757274649380,-480.0,0.0001452,2]
[384155445,1757274649389,-480.0,0.0001452,2]
[384155446,1757274649398,-480.0,0.0001452,2]
[384155447,1757274649407,-480.0,0.0001452,2]
[384155448,1757274649417,-480.0,0.0001452,2]
[384155449,1757274649426,-626.34,0.0001452,2]
[384155450,1757274649436,-480.0,0.0001452,2]
[384155451,1757274649445,-480.0,0.0001452,2]
[384155452,1757274649454,-480.0,0.0001452,2]
[384155453,1757274649463,-530.01,0.0001452,2]
[384155454,1757274649472,-480.0,0.0001452,2]
[384155455,1757274649481,-480.0,0.0001452,2]
[384155456,1757274649490,-480.0,0.0001452,2]
[384155457,1757274649500,-480.0,0.0001452,2]
[384155458,1757274649510,-480.0,0.0001452,2]
[384155459,1757274649520,-480.0,0.0001452,2]
[384155460,1757274649529,-480.0,0.0001452,2]
[384155461,1757274649539,-480.0,0.0001452,2]
[384155462,1757274649548,-480.0,0.0001452,2]
[384155463,1757274649558,-480.0,0.0001452,2]
[384155464,1757274649567,-480.0,0.0001452,2]
[384155465,1757274649577,-480.0,0.0001452,2]
[384155466,1757274649587,-480.0,0.0001452,2]
[384155467,1757274649596,-480.0,0.0001452,2]
[384155468,1757274649606,-955.91,0.0001452,2]
[384155469,1757274649615,-480.0,0.0001452,2]
[384155470,1757274649625,-480.0,0.0001452,2]
[384155471,1757274649634,-480.0,0.0001452,2]
[384155472,1757274649643,-847.25,0.0001452,2]
[384155473,1757274649652,-480.0,0.0001452,2]
[384155474,1757274649661,-537.51,0.0001452,2]
[384155475,1757274649671,-852.02,0.0001452,2]
[384155476,1757274649680,-545.08,0.0001452,2]
[384155477,1757274649689,-480.0,0.0001452,2]
[384155478,1757274649698,-493.16,0.0001452,2]
[384155479,1757274649707,-480.0,0.0001452,2]
[384155480,1757274649717,-480.0,0.0001452,2]
[384155481,1757274649726,-480.0,0.0001452,2]
[384155482,1757274649735,-837.04,0.0001452,2]
[384155483,1757274649744,-480.0,0.0001452,2]
[384155484,1757274649755,-520.08,0.0001452,2]
[384155485,1757274649764,-480.0,0.0001452,2]
[384155486,1757274649773,-161.46713333,0.0001452,2]
[384155487,1757274649782,-409.39498672,0.0001452,2]
[384155488,1757274649792,-480.0,0.0001452,2]
[384155489,1757274649801,-512.84,0.0001452,2]
[384155490,1757274649810,-509.42,0.0001452,2]
[384155491,1757274649820,-573.99,0.0001452,2]
[384155492,1757274649830,-240.99,0.0001452,2]
[384155493,1757274649839,-480.0,0.0001452,2]
[384155494,1757274649849,-480.0,0.0001452,2]
[384155495,1757274649859,-480.0,0.0001452,2]
[384155496,1757274649868,-515.84,0.0001452,2]
[384155497,1757274649950,-480.0,0.0001452,2]
[384155498,1757274649959,-480.0,0.0001452,2]
[384155499,1757274649968,-579.54,0.0001452,2]
[384155500,1757274649977,-614.19,0.0001452,2]
[384155501,1757274649987,-480.0,0.0001452,2]
[384155502,1757274649999,-681.91,0.0001452,2]
[384155503,1757274650009,-480.0,0.0001452,2]
[384155504,1757274650019,-480.0,0.0001452,2]
[384155505,1757274650028,-584.86,0.0001452,2]
[384155506,1757274650038,-480.0,0.0001452,2]
[384155507,1757274650049,-480.0,0.0001452,2]
[384155508,1757274650059,-542.79,0.0001452,2]
[384155509,1757274650068,-480.0,0.0001452,2]
[384155510,1757274650080,-480.0,0.0001452,2]
[384155511,1757274650089,-648.83,0.0001452,2]
[384155512,1757274650099,-573.27,0.0001452,2]
[384155513,1757274650108,-480.0,0.0001452,2]
[384155514,1757274650118,-749.17,0.0001452,2]
[384155515,1757274650128,-940.87,0.0001452,2]
[384155516,1757274650138,-644.09,0.0001452,2]
[384155517,1757274650147,-480.0,0.0001452,2]
[384155518,1757274650157,-1151.19,0.0001452,2]
[384155519,1757274650167,-480.0,0.0001452,2]
[384155520,1757274650177,-523.85,0.0001452,2]
[384155521,1757274650186,-480.0,0.0001452,2]
[384155522,1757274650195,-1072.48,0.0001452,2]
[384155523,1757274650204,-1395.55,0.0001452,2]
[384155524,1757274650214,-480.0,0.0001452,2]
[384155525,1757274650223,-480.0,0.0001452,2]
[384155526,1757274650232,-1470.75,0.0001452,2]
[384155527,1757274650241,-480.0,0.0001452,2]
[384155528,1757274650252,-480.0,0.0001452,2]
[384155529,1757274650261,-480.0,0.0001452,2]
[384155530,1757274650271,-1055.81,0.0001452,2]
[384155531,1757274650280,-480.0,0.0001452,2]
[384155532,1757274650289,-480.0,0.0001452,2]
[384155533,1757274650299,-480.0,0.0001452,2]
[384155534,1757274650308,-1231.51,0.0001452,2]
[384155535,1757274650319,-2139.61,0.0001452,2]
[384155536,1757274650328,-480.0,0.0001452,2]
[384155537,1757274650337,-480.0,0.0001452,2]
[384155538,1757274650347,-895.78,0.0001452,2]
[384155539,1757274650356,-743.59,0.0001452,2]
[384155540,1757274650366,-10085.97,0.0001452,2]
[384155541,1757274650375,-1299.2,0.0001452,2]
[384155542,1757274650385,-893.7,0.0001452,2]
[384155543,1757274650395,-480.0,0.0001452,2]
[384155544,1757274650405,-3236.73,0.0001452,2]
[384155545,1757274650415,-2657.79,0.0001452,2]
[384155546,1757274650425,-1058.78,0.0001452,2]
[384155547,1757274650435,-1595.82,0.0001452,2]
[384155548,1757274650446,-738.74,0.0001452,2]
[384155549,1757274650456,-2988.29,0.0001452,2]
[384155550,1757274650466,-6235.25,0.0001452,2]
[384155551,1757274650475,-580.05,0.0001452,2]
[384155552,1757274650484,-622.98,0.0001452,2]
[384155553,1757274650494,-960.89,0.0001452,2]
[384155554,1757274650503,-711.36,0.0001452,2]
[384155555,1757274650512,-2830.11,0.0001452,2]
[384155556,1757274650521,-480.0,0.0001452,2]
[384155557,1757274650531,-480.0,0.0001452,2]
[384155558,1757274650541,-828.1,0.0001452,2]
[384155559,1757274650551,-1643.42,0.0001452,2]
[384155560,1757274650560,-480.0,0.0001452,2]
[384155561,1757274650570,-915.96,0.0001452,2]
[384155562,1757274650580,-480.0,0.0001452,2]
[384155563,1757274650589,-480.0,0.0001452,2]
[384155564,1757274650600,-808.37,0.0001452,2]
[384155565,1757274650609,-1525.77,0.0001452,2]
[384155566,1757274650619,-2025.76,0.0001452,2]
[384155567,1757274650628,-4996.93,0.0001452,2]
[384155568,1757274650638,-480.0,0.0001452,2]
[384155569,1757274650647,-1071.86,0.0001452,2]
[384155570,1757274650656,-480.0,0.0001452,2]
[384155571,1757274650666,-1670.47,0.0001452,2]
[384155572,1757274650675,-856.59,0.0001452,2]
[384155573,1757274650684,-519.19,0.0001452,2]
[384155574,1757274650693,-480.0,0.0001452,2]
[384155575,1757274650703,-480.0,0.0001452,2]
[384155576,1757274650712,-526.33,0.0001452,2]
[384155577,1757274650722,-607.25,0.0001452,2]
[384155578,1757274650731,-480.0,0.0001452,2]
[384155579,1757274650740,-623.5,0.0001452,2]
[384155580,1757274650749,-925.83,0.0001452,2]
[384155581,1757274650758,-2981.87,0.0001452,2]
[384155582,1757274650768,-972.41,0.0001452,2]
[384155583,1757274650777,-480.0,0.0001452,2]
[384155584,1757274650787,-480.0,0.0001452,2]
[384155585,1757274650796,-2747.03,0.0001452,2]
[384155586,1757274650806,-679.46,0.0001452,2]
[384155587,1757274650815,-480.0,0.0001452,2]
[384155588,1757274650824,-687.26,0.0001452,2]
[384155589,1757274650834,-938.74,0.0001452,2]
[384155590,1757274650844,-480.0,0.0001452,2]
[384155591,1757274650854,-480.0,0.0001452,2]
[384155592,1757274650863,-3149.45,0.0001452,2]
[384155593,1757274650873,-846.0,0.0001452,2]
[384155594,1757274650882,-500.0,0.0001452,2]
[384155595,1757274650892,-775.15,0.0001452,2]
[384155596,1757274650902,-2753.95,0.0001452,2]
[384155597,1757274650911,-480.0,0.0001452,2]
[384155598,1757274650920,-2248.94,0.0001452,2]
[384155599,1757274650929,-480.0,0.0001452,2]
[384155600,1757274650938,-21087.15,0.0001452,2]
[384155601,1757274650948,-1070.93,0.0001452,2]
[384155602,1757274650957,-228.8854151,0.0001452,2]
[384155603,1757274650966,-563.29631353,0.00014535,2]
[384155604,1757274650975,-436.19,0.0001455,2]
[384155605,1757274650984,-436.19,0.00014564,2]
[384155606,1757274650995,-151.0,0.000146,2]
[384155607,1757274651007,-500.0,0.00014689,2]
[384155608,1757274651017,-500.0,0.00014691,2]
[384155609,1757274651026,-12840.14129709,0.00014694,2]
[384155610,1757274651035,-151.0,0.000147,2]
[384155611,1757274651045,-1500.0,0.000147,2]
[384155612,1757274651054,-168.0,0.00014705,2]
[384155613,1757274651063,-1500.0,0.00014768,2]
[384155614,1757274651073,-1500.0,0.00014768,2]
[384155615,1757274651082,-1500.0,0.00014768,2]
[384155616,1757274651092,-1500.0,0.00014768,2]
[384155617,1757274651101,-1500.0,0.00014768,2]
[384155618,1757274651111,-167.91943825,0.00014768,2]
[384155619,1757274651120,-1500.0,0.00014768,2]
[384155620,1757274651129,-1501.07369853,0.00014768,2]
[384155621,1757274651138,-1500.0,0.00014768,2]
[384155622,1757274651147,-1500.0,0.00014768,2]
[384155623,1757274651225,-1500.0,0.00014768,2]
[384155624,1757274651235,-1500.0,0.00014768,2]
[384155625,1757274651244,-500.0,0.00014773,2]
[384155626,1757274651253,-500.41818299,0.00014773,2]
[384155627,1757274651263,-500.0,0.00014773,2]
[384155628,1757274651272,-500.0,0.00014773,2]
[384155629,1757274651281,-500.0,0.00014773,2]
[384155630,1757274651290,-500.0,0.00014773,2]
[384155631,1757274651300,-500.0,0.00014773,2]
[384155632,1757274651309,-500.0,0.00014773,2]
[384155633,1757274651318,-500.0,0.00014773,2]
[384155634,1757274651328,-500.0,0.00014773,2]
[384155635,1757274651337,-500.0,0.00014773,2]
[384155636,1757274651347,-218.05136849,0.00014773,2]
[384155637,1757274651356,-500.0,0.00014773,2]
[384155638,1757274651365,-155.2075084,0.00014773,2]
[384155639,1757274651374,-514.74910657,0.00014773,2]
[384155640,1757274651383,-500.0,0.00014773,2]
[384155641,1757274651392,-500.0,0.00014773,2]
[384155642,1757274651402,-500.0,0.00014773,2]
[384155643,1757274651411,-500.0,0.00014773,2]
[384155644,1757274651420,-500.0,0.00014773,2]
[384155645,1757274651430,-293.30274321,0.00014773,2]
[384155646,1757274651439,-169.89337371,0.00014773,2]
[384155647,1757274651449,-447.37626652,0.00014773,2]
[384155648,1757274651459,-500.0,0.00014773,2]
[384155649,1757274651468,-500.0,0.00014773,2]
[384155650,1757274651477,-500.0,0.00014773,2]
[384155651,1757274651487,-500.0,0.00014773,2]
[384155652,1757274651496,-174.34310023,0.00014773,2]
[384155653,1757274651505,-500.0,0.00014773,2]
[384155654,1757274651514,-524.05949463,0.00014773,2]
[384155655,1757274651524,-500.0,0.00014773,2]
[384155656,1757274651533,-317.29572709,0.00014773,2]
[384155657,1757274651542,-500.0,0.00014773,2]
[384155658,1757274651551,-500.0,0.00014773,2]
[384155659,1757274651561,-500.0,0.00014773,2]
[384155660,1757274651570,-500.0,0.00014773,2]
[384155661,1757274651579,-500.0,0.00014773,2]
[384155662,1757274651589,-500.0,0.00014773,2]
[384155663,1757274651598,-272.12869591,0.00014773,2]
[384155664,1757274651607,-500.0,0.00014773,2]
[384155665,1757274651617,-500.0,0.00014773,2]
[384155666,1757274651626,-527.6904202,0.00014773,2]
[384155667,1757274651635,-500.0,0.00014773,2]
[384155668,1757274651645,-202.50637561,0.00014773,2]
[384155669,1757274651655,-500.0,0.00014773,2]
[384155670,1757274651665,-500.0,0.00014773,2]
[384155671,1757274651674,-500.0,0.00014773,2]
[384155672,1757274651684,-500.0,0.00014773,2]
[384155673,1757274651693,-500.0,0.00014773,2]
[384155674,1757274651702,-500.0,0.00014773,2]
[384155675,1757274651711,-500.0,0.00014773,2]
[384155676,1757274651721,-500.0,0.00014773,2]
[384155677,1757274651730,-500.0,0.00014773,2]
[384155678,1757274651739,-500.0,0.00014773,2]
[384155679,1757274651749,-500.0,0.00014773,2]
[384155680,1757274651758,-500.0,0.00014773,2]
[384155681,1757274651767,-500.0,0.00014773,2]
[384155682,1757274651777,-500.0,0.00014773,2]
[384155683,1757274651787,-500.0,0.00014773,2]
[384155684,1757274651796,-500.0,0.00014773,2]
[384155685,1757274651805,-160.61509822,0.00014773,2]
[384155686,1757274651815,-150000.0,0.00014794,2]
[384155687,1757274651824,-105182.10579549,0.00014794,2]
[384155688,1757274651834,-846.0,0.00014794,2]
[384155689,1757274651843,-500.0,0.00014794,2]
[384155690,1757274651852,-208.0,0.00014794,2]
[384155691,1757274651861,-208.0,0.00014794,2]
[384155692,1757274651871,-208.0,0.00014794,2]
[384155693,1757274651880,-208.0,0.00014794,2]
[384155694,1757274651890,-208.0,0.00014794,2]
[384155695,1757274651899,-208.0,0.00014794,2]
[384155696,1757274651909,-208.0,0.00014794,2]
[384155697,1757274651918,-208.0,0.00014794,2]
[384155698,1757274651928,-208.0,0.00014794,2]
[384155699,1757274651938,-208.0,0.00014794,2]
[384155700,1757274651947,-208.0,0.00014794,2]
[384155701,1757274651956,-208.0,0.00014794,2]
[384155702,1757274651966,-480.0,0.00014794,2]
[384155703,1757274651975,-430.14399858,0.00014794,2]
[384155704,1757274651985,-480.0,0.00014794,2]
[384155705,1757274651994,-480.0,0.00014794,2]
[384155706,1757274652008,-626.34,0.00014794,2]
[384155707,1757274652019,-480.0,0.00014794,2]
[384155708,1757274652028,-480.0,0.00014794,2]
[384155709,1757274652039,-530.01,0.00014794,2]
[384155710,1757274652049,-480.0,0.00014794,2]
[384155711,1757274652059,-480.0,0.00014794,2]
[384155712,1757274652069,-480.0,0.00014794,2]
[384155713,1757274652080,-293.03965651,0.00014794,2]
[384155714,1757274652090,-480.0,0.00014794,2]
[384155715,1757274652100,-480.0,0.00014794,2]
[384155716,1757274652110,-480.0,0.00014794,2]
[384155717,1757274652119,-480.0,0.00014794,2]
[384155718,1757274652129,-607.54,0.00014794,2]
[384155719,1757274652139,-480.0,0.00014794,2]
[384155720,1757274652149,-480.0,0.00014794,2]
[384155721,1757274652159,-480.0,0.00014794,2]
[384155722,1757274652170,-955.91,0.00014794,2]
[384155723,1757274652179,-480.0,0.00014794,2]
[384155724,1757274652188,-480.0,0.00014794,2]
[384155725,1757274652198,-480.0,0.00014794,2]
[384155726,1757274652209,-847.25,0.00014794,2]
[384155727,1757274652220,-241.88800298,0.00014794,2]
[384155728,1757274652231,-537.51,0.00014794,2]
[384155729,1757274652241,-852.02,0.00014794,2]
[384155730,1757274652250,-545.08,0.00014794,2]
[384155731,1757274652260,-493.16,0.00014794,2]
[384155732,1757274652270,-480.0,0.00014794,2]
[384155733,1757274652279,-463.70404932,0.00014794,2]
[384155734,1757274652289,-480.0,0.00014794,2]
[384155735,1757274652299,-837.04,0.00014794,2]
[384155736,1757274652308,-480.0,0.00014794,2]
[384155737,1757274652318,-520.08,0.00014794,2]
[384155738,1757274652328,-480.0,0.00014794,2]
[384155739,1757274652403,-228.59584326,0.00014794,2]
[384155740,1757274652413,-512.84,0.00014794,2]
[384155741,1757274652422,-509.42,0.00014794,2]
[384155742,1757274652431,-573.99,0.00014794,2]
[384155743,1757274652441,-480.0,0.00014794,2]
[384155744,1757274652450,-480.0,0.00014794,2]
[384155745,1757274652459,-480.0,0.00014794,2]
[384155746,1757274652468,-480.0,0.00014794,2]
[384155747,1757274652477,-480.0,0.00014794,2]
[384155748,1757274652487,-579.54,0.00014794,2]
[384155749,1757274652496,-614.19,0.00014794,2]
[384155750,1757274652505,-480.0,0.00014794,2]
[384155751,1757274652515,-681.91,0.00014794,2]
[384155752,1757274652524,-480.0,0.00014794,2]
[384155753,1757274652533,-431.83256565,0.00014794,2]
[384155754,1757274652543,-584.86,0.00014794,2]
[384155755,1757274652552,-480.0,0.00014794,2]
[384155756,1757274652562,-480.0,0.00014794,2]
[384155757,1757274652570,-542.79,0.00014794,2]
[384155758,1757274652580,-480.0,0.00014794,2]
[384155759,1757274652589,-480.0,0.00014794,2]
[384155760,1757274652599,-648.83,0.00014794,2]
[384155761,1757274652609,-573.27,0.00014794,2]
[384155762,1757274652619,-480.0,0.00014794,2]
[384155763,1757274652629,-749.17,0.00014794,2]
[384155764,1757274652641,-940.87,0.00014794,2]
[384155765,1757274652653,-644.09,0.00014794,2]
[384155766,1757274652663,-480.0,0.00014794,2]
[384155767,1757274652672,-1151.19,0.00014794,2]
[384155768,1757274652681,-480.0,0.00014794,2]
[384155769,1757274652691,-523.85,0.00014794,2]
[384155770,1757274652700,-480.0,0.00014794,2]
[384155771,1757274652710,-1072.48,0.00014794,2]
[384155772,1757274652719,-1395.55,0.00014794,2]
[384155773,1757274652729,-480.0,0.00014794,2]
[384155774,1757274652738,-220.77,0.00014794,2]
[384155775,1757274652747,-1470.75,0.00014794,2]
[384155776,1757274652756,-480.0,0.00014794,2]
[384155777,1757274652765,-480.0,0.00014794,2]
[384155778,1757274652775,-1055.81,0.00014794,2]
[384155779,1757274652784,-480.0,0.00014794,2]
[384155780,1757274652795,-480.0,0.00014794,2]
[384155781,1757274652805,-480.0,0.00014794,2]
[384155782,1757274652814,-1231.51,0.00014794,2]
[384155783,1757274652823,-2139.61,0.00014794,2]
[384155784,1757274652832,-480.0,0.00014794,2]
[384155785,1757274652842,-480.0,0.00014794,2]
[384155786,1757274652852,-895.78,0.00014794,2]
[384155787,1757274652861,-743.59,0.00014794,2]
[384155788,1757274652870,-10085.97,0.00014794,2]
[384155789,1757274652879,-1299.2,0.00014794,2]
[384155790,1757274652888,-893.7,0.00014794,2]
[384155791,1757274652898,-480.0,0.00014794,2]
[384155792,1757274652907,-3236.73,0.00014794,2]
[384155793,1757274652916,-2657.79,0.00014794,2]
[384155794,1757274652928,-1058.78,0.00014794,2]
[384155795,1757274652948,-1595.82,0.00014794,2]
[384155796,1757274652964,-738.74,0.00014794,2]
[384155797,1757274652983,-2988.29,0.00014794,2]
[384155798,1757274653009,-6235.25,0.00014794,2]
[384155799,1757274653037,-580.05,0.00014794,2]
[384155800,1757274653056,-622.98,0.00014794,2]
[384155801,1757274653073,-960.89,0.00014794,2]
[384155802,1757274653091,-711.36,0.00014794,2]
[384155803,1757274653111,-2830.11,0.00014794,2]
[384155804,1757274653131,-480.0,0.00014794,2]
[384155805,1757274653146,-480.0,0.00014794,2]
[384155806,1757274653160,-828.1,0.00014794,2]
[384155807,1757274653177,-1643.42,0.00014794,2]
[384155808,1757274653192,-480.0,0.00014794,2]
[384155809,1757274653205,-915.96,0.00014794,2]
[384155810,1757274653220,-480.0,0.00014794,2]
[384155811,1757274653235,-311.24267845,0.00014794,2]
[384155812,1757274653926,-230.6,0.00013698,2]
[384155813,1757274653936,-899.04138906,0.00013698,2]
[384155814,1757274653948,-247.68509798,0.00013972,2]
[384155815,1757274656762,500.0,0.00013597,2]
[384155816,1757274656821,500.0,0.00013597,2]
[384155817,1757274656851,500.0,0.00013597,2]
[384155818,1757274656881,307.64411459,0.00013597,2]
[384155819,1757274656910,500.0,0.00013597,2]
[384155820,1757274656948,500.0,0.00013597,2]
[384155821,1757274657006,500.0,0.00013597,2]
[384155822,1757274657043,155.97344209,0.00013597,2]
[384155823,1757274657064,344.02655791,0.00013597,2]
[384155824,1757274657095,500.0,0.00013597,2]
[384155825,1757274657232,500.0,0.00013597,2]
[384155826,1757274657255,500.0,0.00013597,2]
[384155827,1757274657278,500.0,0.00013597,2]
[384155828,1757274657304,500.0,0.00013597,2]
[384155829,1757274657328,500.0,0.00013597,2]
[384155830,1757274657359,500.0,0.00013597,2]
[384155831,1757274657418,221.82109396,0.00013597,2]
[384155832,1757274657474,500.0,0.00013597,2]
[384155833,1757274674620,500.0,0.00013597,2]
[384155834,1757274674678,500.0,0.00013597,2]
[384155835,1757274674738,500.0,0.00013597,2]
[384155836,1757274674787,524.99999999,0.00013597,2]
[384155837,1757274718804,3409.16234814,0.00013498,2]
[384155838,1757274718827,10000.01,0.00013498,2]
[384155839,1757274718851,7008.01952719,0.00013498,2]
[384155840,1757274725300,300.0,0.00013535,2]
[384155841,1757274728291,193.69,0.00012329,2]
[384155842,1757274733460,300.0,0.00013535,2]
[384155843,1757274738935,161.41,0.00012329,2]
[384155844,1757274748995,300.0,0.00013535,2]
[384155845,1757274749390,807.08,0.00012329,2]
[384155847,1757274757050,300.0,0.00013535,2]
[384155848,1757274758292,309.29183817,0.00013598,2]
[384155849,1757274772622,300.0,0.00013535,2]